bitfinex/quotes_SOLUSD_20220210
["timestamp","ask_amount","ask_price","bid_price","bid_amount"]
[1644466064995,0.45108914,111.38,111.33,37.6522]
[1644466065193,0.03567329,111.37,111.33,37.6522]
[1644466066093,0.03567329,111.37,111.33,24.1776]
[1644466066294,0.03567329,111.37,111.32,16.949]
[1644466066493,0.03567329,111.37,111.32,12.46]
[1644466067092,13.51367329,111.37,111.31,4.49]
[1644466067292,0.03567329,111.36,111.3,24.1105]
[1644466067493,0.03567329,111.37,111.3,24.1105]
[1644466067691,0.03567329,111.35,111.3,24.1105]
[1644466067892,41.42854936,111.37,111.3,24.1105]
[1644466068092,0.03567329,111.34,111.3,24.1105]
[1644466068294,0.03567329,111.36,111.3,24.1105]
[1644466068692,13.51507329,111.36,111.3,24.1105]
[1644466068894,45.26560287,111.35,111.3,24.1105]
[1644466069093,0.03567329,111.34,111.3,24.1105]
[1644466069694,0.03567329,111.34,111.3,24.3605]
[1644466070696,0.03567329,111.34,111.3,37.5878]
[1644466071798,0.03567329,111.34,111.31,4.491]
[1644466072000,0.03567329,111.36,111.31,62.45931317]
[1644466072201,0.03567329,111.37,111.31,62.45931317]
[1644466072601,0.03567329,111.37,111.31,62.70931317]
[1644466072801,0.03567329,111.37,111.31,17.968]
[1644466073806,40.96878781,111.37,111.31,17.968]
[1644466074003,0.03567329,111.36,111.31,17.968]
[1644466074803,0.03567329,111.36,111.32,48.70867774]
[1644466075004,40.96878781,111.37,111.33,13.4738]
[1644466075206,0.03567329,111.36,111.33,13.4738]
[1644466075404,40.96878781,111.37,111.34,3.03219997]
[1644466075605,40.93311452,111.37,111.34,3.03219997]
[1644466075805,23.21988914,111.38,111.34,3.03219997]
[1644466076410,0.45108914,111.38,111.34,3.03219997]
[1644466076606,0.45108914,111.38,111.34,16.50559997]
[1644466076806,0.48676243,111.38,111.34,65.24455889]
[1644466077006,0.45108914,111.38,111.34,21.24459997]
[1644466077207,0.45108914,111.38,111.34,16.75559997]
[1644466078111,0.45108914,111.38,111.34,53.61020407]
[1644466081816,0.45108914,111.38,111.34,89.09360407]
[1644466082014,0.48676243,111.38,111.34,89.09360407]
[1644466082238,0.45108914,111.38,111.35,4.489]
[1644466082414,0.45108914,111.38,111.36,16.50139997]
[1644466082616,0.45108914,111.38,111.36,55.35668576]
[1644466082814,0.45108914,111.38,111.36,55.60668576]
[1644466083014,0.45108914,111.38,111.37,3.03219997]
[1644466084819,0.45108914,111.38,111.37,13.4692]
[1644466085018,0.45108914,111.38,111.37,16.50139997]
[1644466086119,0.45108914,111.38,111.37,59.80937609]
[1644466086722,0.45108914,111.38,111.37,16.50139997]
[1644466097267,0.45108914,111.38,111.37,13.4692]
[1644466097466,0.45108914,111.38,111.36,3.03219997]
[1644466097666,0.45108914,111.38,111.31,40.5844]
[1644466097964,0.03567329,111.37,111.31,40.5844]
[1644466098163,0.03567329,111.37,111.31,36.0954]
[1644466098365,0.03567329,111.37,111.32,35.91652659]
[1644466098565,0.03567329,111.37,111.33,13.4743]
[1644466098969,0.03567329,111.37,111.32,35.91652659]
[1644466099167,1.31287773,111.37,111.31,36.0954]
[1644466099371,0.03567329,111.36,111.31,23.6354]
[1644466099565,0.03567329,111.36,111.32,13.4765]
[1644466099770,1.31287773,111.37,111.32,13.4765]
[1644466100167,40.84099125,111.36,111.32,13.4765]
[1644466100367,40.87666454,111.36,111.32,13.4765]
[1644466101069,40.87666454,111.36,111.31,37.1129]
[1644466101268,42.15386898,111.36,111.31,37.1129]
[1644466101467,42.11819569,111.36,111.31,37.1129]
[1644466102869,55.59599569,111.36,111.31,37.1129]
[1644466105174,55.59599569,111.36,111.31,85.55885624]
[1644466105675,55.59599569,111.36,111.31,37.1129]
[1644466106673,55.59599569,111.36,111.31,73.36593887]
[1644466107473,55.59599569,111.36,111.31,37.1129]
[1644466110374,55.59599569,111.36,111.31,23.6354]
[1644466110774,55.59599569,111.36,111.3,36.1605]
[1644466110975,55.63166898,111.36,111.3,36.1605]
[1644466111374,54.35446454,111.36,111.3,36.1605]
[1644466113174,53.85446454,111.36,111.3,36.1605]
[1644466113375,53.85446454,111.36,111.31,37.93989268]
[1644466113573,53.85446454,111.36,111.31,51.41729268]
[1644466114678,53.85446454,111.36,111.31,55.90729268]
[1644466115180,53.85446454,111.36,111.31,17.9674]
[1644466116777,55.13166898,111.36,111.31,17.9674]
[1644466116979,55.09599569,111.36,111.31,13.4774]
[1644466118980,53.81879125,111.36,111.31,13.4774]
[1644466119181,53.85446454,111.36,111.31,13.4774]
[1644466119485,40.37666454,111.36,111.31,47.92593704]
[1644466119683,40.37666454,111.36,111.31,13.4774]
[1644466120684,40.34099125,111.36,111.31,13.4774]
[1644466120987,40.34099125,111.36,111.31,17.9674]
[1644466122086,40.34099125,111.36,111.32,38.0910731]
[1644466122286,14.78977773,111.37,111.32,51.5673731]
[1644466123285,48.97293178,111.37,111.32,51.5673731]
[1644466123787,1.27720444,111.36,111.32,51.5673731]
[1644466127688,1.27720444,111.35,111.32,51.8173731]
[1644466127891,1.27720444,111.36,111.33,6.06439994]
[1644466128090,1.27720444,111.36,111.34,13.4733]
[1644466128291,1.31287773,111.37,111.34,13.4733]
[1644466128490,1.27720444,111.37,111.34,25.9333]
[1644466128690,1.72829358,111.38,111.34,63.39212296]
[1644466129290,0.45108914,111.38,111.34,63.39212296]
[1644466129489,0.48676243,111.38,111.34,63.39212296]
[1644466132694,0.45108914,111.38,111.34,63.39212296]
[1644466132894,0.45108914,111.38,111.34,86.22072296]
[1644466135197,0.45108914,111.38,111.34,49.0119]
[1644466135700,0.45108914,111.38,111.34,13.4733]
[1644466135997,1.76396687,111.38,111.34,13.4733]
[1644466136197,1.76396687,111.38,111.32,28.7475]
[1644466136198,40.38765345,111.37,111.33,13.4755]
[1644466136498,40.42332674,111.37,111.33,13.4755]
[1644466146734,40.42332674,111.37,111.33,17.9655]
[1644466149235,40.42332674,111.37,111.33,13.4755]
[1644466150837,40.42332674,111.37,111.34,6.0]
[1644466151036,40.38765345,111.37,111.34,6.0]
[1644466151239,40.38765345,111.37,111.34,19.4749]
[1644466151438,40.38765345,111.37,111.35,6.06439994]
[1644466151640,40.38765345,111.37,111.34,13.4749]
[1644466152439,41.66485789,111.37,111.34,13.4749]
[1644466157344,41.66485789,111.37,111.35,3.03219997]
[1644466157947,41.66485789,111.37,111.34,13.4749]
[1644466161258,1.27720444,111.36,111.31,44.9152]
[1644466161457,1.27720444,111.36,111.3,22.6818]
[1644466161757,1.27720444,111.35,111.32,13.477]
[1644466162161,46.47808255,111.34,111.32,13.477]
[1644466164665,46.47808255,111.34,111.29,0.024]
[1644466164884,23.5553,111.33,111.28,0.024]
[1644466165084,24.83250444,111.33,111.28,0.024]
[1644466165483,34.61955102,111.32,111.28,0.024]
[1644466165785,34.61955102,111.32,111.27,4.515]
[1644466166686,48.10175102,111.32,111.27,4.515]
[1644466167684,48.10175102,111.32,111.27,4.491]
[1644466167884,48.10175102,111.32,111.27,4.515]
[1644466169188,48.10175102,111.32,111.27,0.024]
[1644466176196,34.61955102,111.32,111.27,0.024]
[1644466176995,37.0364,111.33,111.27,0.024]
[1644466177195,37.0364,111.33,111.28,4.492]
[1644466177402,37.0364,111.33,111.29,0.024]
[1644466178197,40.89152297,111.32,111.29,0.024]
[1644466178496,40.89152297,111.32,111.28,23.1882]
[1644466178797,40.89152297,111.32,111.28,36.6687]
[1644466182705,40.89152297,111.32,111.28,36.6447]
[1644466187310,54.37342297,111.32,111.27,13.5059]
[1644466187610,54.37342297,111.32,111.27,0.024]
[1644466187914,55.65062741,111.32,111.27,0.024]
[1644466197922,54.37342297,111.32,111.27,0.024]
[1644466198127,40.89152297,111.32,111.27,0.024]
[1644466198740,40.89152297,111.32,111.27,13.5054]
[1644466198940,40.89152297,111.32,111.27,37.4523]
[1644466199340,40.89152297,111.32,111.28,48.30584566]
[1644466199639,40.89152297,111.32,111.28,48.32984566]
[1644466202743,40.89152297,111.32,111.28,61.81044566]
[1644466202943,1.27720444,111.34,111.28,61.81044566]
[1644466203145,38.28130444,111.34,111.29,25.0011]
[1644466203348,38.28130444,111.34,111.29,29.4921]
[1644466203946,66.80919229,111.34,111.29,42.9715]
[1644466204149,66.80919229,111.34,111.3,3.55674944]
[1644466204546,66.80919229,111.34,111.3,49.8400568]
[1644466204752,65.53198785,111.34,111.3,49.8400568]
[1644466205148,66.80919229,111.34,111.3,3.55674944]
[1644466205347,65.53198785,111.34,111.3,3.55674944]
[1644466206149,65.53198785,111.34,111.3,17.03534944]
[1644466206349,65.53198785,111.34,111.3,64.82570294]
[1644466207750,65.53198785,111.34,111.3,17.03534944]
[1644466209257,79.01148785,111.34,111.3,17.03534944]
[1644466209756,79.01148785,111.34,111.3,3.55674944]
[1644466209956,80.28869229,111.34,111.3,3.55674944]
[1644466210156,1.27720444,111.33,111.3,3.55674944]
[1644466210355,14.75890444,111.33,111.3,3.55674944]
[1644466210760,46.09267636,111.32,111.3,3.55674944]
[1644466212359,46.09267636,111.32,111.29,3.58074944]
[1644466212561,46.09267636,111.32,111.3,6.06439994]
[1644466212759,13.4817,111.33,111.3,6.06439994]
[1644466213769,47.944956,111.32,111.3,6.06439994]
[1644466214360,47.944956,111.32,111.29,27.31504944]
[1644466215763,47.944956,111.32,111.3,6.06439994]
[1644466216165,47.944956,111.32,111.31,3.55674944]
[1644466217287,61.426756,111.32,111.31,3.55674944]
[1644466218567,13.4818,111.32,111.31,3.55674944]
[1644466218768,13.4818,111.32,111.31,6.75733637]
[1644466218971,13.4818,111.32,111.31,3.55674944]
[1644466219167,24.80160444,111.34,111.31,3.55674944]
[1644466219571,62.17276446,111.34,111.31,3.55674944]
[1644466220269,1.27720444,111.35,111.31,37.78696008]
[1644466220569,1.31328594,111.37,111.31,38.03696008]
[1644466220770,1.31328594,111.37,111.32,4.49]
[1644466221169,44.70589328,111.37,111.33,3.55674944]
[1644466221571,43.42868884,111.37,111.33,17.03154944]
[1644466221771,43.42868884,111.37,111.33,64.65855727]
[1644466222068,1.72829358,111.38,111.33,64.65855727]
[1644466222269,0.03625608,111.37,111.33,64.65855727]
[1644466223674,0.03625608,111.37,111.33,17.03154944]
[1644466224807,13.51225608,111.37,111.33,17.03154944]
[1644466225077,41.16307999,111.36,111.33,17.03154944]
[1644466225875,41.16307999,111.36,111.34,6.06439994]
[1644466226475,41.16307999,111.36,111.35,3.55674944]
[1644466228781,0.03625608,111.37,111.35,8.92916988]
[1644466228979,1.72829358,111.38,111.35,8.92916988]
[1644466229174,0.45108914,111.38,111.35,8.92916988]
[1644466229775,0.45108914,111.38,111.35,43.21723621]
[1644466230076,42.26612899,111.38,111.35,43.21723621]
[1644466230375,42.26612899,111.38,111.35,8.92916988]
[1644466230776,42.26612899,111.38,111.35,22.40276988]
[1644466233005,0.45108914,111.38,111.35,22.40276988]
[1644466237217,49.96965188,111.39,111.35,22.40276988]
[1644466237415,50.00600444,111.39,111.35,22.40276988]
[1644466238217,0.03635256,111.39,111.36,36.02408887]
[1644466238418,1.27720444,111.4,111.37,3.03219997]
[1644466238623,1.27720444,111.41,111.37,29.77019994]
[1644466238917,1.313557,111.42,111.38,3.55674944]
[1644466239215,41.33136713,111.42,111.38,47.09763573]
[1644466239415,41.36771969,111.42,111.38,17.02574944]
[1644466239618,42.64492413,111.42,111.38,3.55674944]
[1644466240018,1.27720444,111.41,111.38,3.55674944]
[1644466240417,48.5095006,111.4,111.38,3.55674944]
[1644466242718,48.5095006,111.4,111.37,3.55674944]
[1644466244520,48.5095006,111.4,111.35,17.9611]
[1644466244719,49.8230576,111.4,111.33,4.489]
[1644466244919,23.65305256,111.39,111.33,4.489]
[1644466245123,45.10214807,111.38,111.32,23.8401]
[1644466245719,45.10214807,111.38,111.33,13.4754]
[1644466246720,58.57754807,111.38,111.33,13.4754]
[1644466247827,59.85475251,111.38,111.33,13.4754]
[1644466249426,1.27720444,111.37,111.33,13.4754]
[1644466249627,41.01295085,111.36,111.33,13.4754]
[1644466251131,1.313557,111.38,111.33,74.62937384]
[1644466251332,2.55859376,111.44,111.34,10.49]
[1644466251533,13.3939,111.5,111.34,10.49]
[1644466251534,3.83663746,111.5,111.37,13.4674]
[1644466251731,2.55999195,111.51,111.39,157.43931535]
[1644466251932,2.55999195,111.51,111.4,12.46]
[1644466252131,35.81641663,111.5,111.41,80.321895]
[1644466252330,35.81641663,111.5,111.43,35.27278568]
[1644466252531,35.81641663,111.5,111.45,35.22310964]
[1644466252835,0.03659842,111.49,111.46,4.485]
[1644466253033,35.81641663,111.5,111.47,6.06439994]
[1644466253235,35.81641663,111.5,111.46,4.485]
[1644466255133,35.81641663,111.5,111.46,1.83054447]
[1644466255534,35.81641663,111.5,111.45,17.9443]
[1644466255735,35.81641663,111.5,111.45,13.4593]
[1644466256335,35.81641663,111.5,111.45,3.56948933]
[1644466256536,35.81641663,111.5,111.42,14.29054447]
[1644466256735,1.50459842,111.49,111.42,1.83054447]
[1644466256935,1.50459842,111.49,111.37,0.5]
[1644466257136,1.50459842,111.49,111.38,12.46]
[1644466257339,41.81377907,111.48,111.4,36.21384062]
[1644466257539,0.03659842,111.47,111.42,13.4621]
[1644466258046,0.03659842,111.47,111.42,58.01103878]
[1644466258239,0.03659842,111.47,111.42,13.4621]
[1644466259260,0.03659842,111.47,111.43,34.4273143]
[1644466259461,41.85037749,111.48,111.43,47.8896143]
[1644466259661,2.55359842,111.47,111.43,47.8896143]
[1644466259861,2.517,111.47,111.43,47.8896143]
[1644466260061,0.03659842,111.47,111.43,47.8896143]
[1644466260259,41.85037749,111.48,111.43,47.8896143]
[1644466260564,0.03659842,111.47,111.43,13.4623]
[1644466260761,41.85037749,111.48,111.43,13.4623]
[1644466260961,0.03659842,111.47,111.43,13.4623]
[1644466261160,2.52,111.47,111.43,13.4623]
[1644466261359,2.55659842,111.47,111.43,13.4623]
[1644466261560,2.55659842,111.47,111.43,50.32048837]
[1644466262560,0.03659842,111.47,111.43,50.32048837]
[1644466262759,4.02259842,111.49,111.43,50.32048837]
[1644466263763,4.02259842,111.49,111.43,50.57048837]
[1644466263962,4.02259842,111.49,111.45,13.4583]
[1644466264162,3.986,111.49,111.45,13.7083]
[1644466264563,3.986,111.49,111.46,36.54797794]
[1644466264964,3.986,111.49,111.47,3.03219997]
[1644466265164,0.03659842,111.51,111.47,6.06439994]
[1644466265567,39.23684069,111.52,111.47,6.06439994]
[1644466266464,39.23684069,111.52,111.47,19.52169994]
[1644466266668,35.25084069,111.52,111.48,41.86484293]
[1644466266965,3.985,111.53,111.48,41.86484293]
[1644466267770,44.52097954,111.53,111.48,41.86484293]
[1644466267967,44.52097954,111.53,111.47,13.4573]
[1644466268971,44.52097954,111.53,111.47,52.42302248]
[1644466269475,44.52097954,111.53,111.47,13.4573]
[1644466269677,57.97907954,111.53,111.47,13.4573]
[1644466269869,57.97907954,111.53,111.46,13.4587]
[1644466272476,57.97907954,111.53,111.47,47.2826979]
[1644466272876,57.97907954,111.53,111.46,13.4587]
[1644466274576,0.03666176,111.52,111.46,13.4587]
[1644466276076,0.03666176,111.52,111.46,17.9427]
[1644466278884,36.13081458,111.51,111.46,13.4587]
[1644466286212,4.02266176,111.52,111.47,41.1409352]
[1644466286411,4.02266176,111.52,111.48,13.4567]
[1644466286616,37.8659,111.54,111.48,13.4567]
[1644466286617,4.02166176,111.53,111.48,13.4567]
[1644466287215,4.02166176,111.53,111.44,31.29015438]
[1644466287412,13.4603,111.51,111.45,13.4603]
[1644466287611,4.02166176,111.5,111.45,13.4603]
[1644466288013,38.33515592,111.5,111.45,13.4603]
[1644466288413,34.31349416,111.5,111.45,13.4603]
[1644466290914,34.35015592,111.5,111.45,13.4603]
[1644466292416,38.33615592,111.5,111.45,13.4603]
[1644466293517,34.35015592,111.5,111.45,13.4603]
[1644466294223,0.03666176,111.5,111.47,13.4574]
[1644466294419,0.03666176,111.51,111.47,13.4574]
[1644466294620,38.0123,111.52,111.47,13.4574]
[1644466295021,42.0033,111.52,111.47,13.4574]
[1644466295222,47.9945708,111.51,111.47,13.4574]
[1644466295423,48.03123256,111.51,111.47,13.4574]
[1644466296123,0.03666176,111.51,111.47,13.4574]
[1644466296325,17.47836176,111.54,111.47,13.4574]
[1644466296526,2.59899188,111.53,111.47,13.7074]
[1644466296726,4.01866176,111.52,111.47,13.7074]
[1644466297125,36.63671777,111.53,111.47,54.15931267]
[1644466297329,0.03666176,111.52,111.47,54.40931267]
[1644466297728,0.03666176,111.52,111.47,68.69526705]
[1644466300128,0.03666176,111.52,111.47,66.86931267]
[1644466300532,0.03666176,111.52,111.47,66.61931267]
[1644466300731,0.03666176,111.52,111.47,25.9174]
[1644466304537,0.03666176,111.52,111.47,74.08064496]
[1644466304737,0.03666176,111.52,111.47,74.33064496]
[1644466306038,0.03666176,111.52,111.47,74.08064496]
[1644466306237,0.03666176,111.52,111.47,25.9174]
[1644466307739,0.03666176,111.52,111.47,13.4574]
[1644466307942,0.03666176,111.52,111.45,28.8519]
[1644466307943,0.03666176,111.52,111.46,13.4589]
[1644466308143,3.987,111.51,111.42,4.484]
[1644466308341,0.03666176,111.5,111.42,28.1838]
[1644466308541,0.03666176,111.51,111.42,28.1838]
[1644466308740,0.03666176,111.49,111.42,28.1838]
[1644466308940,53.31304241,111.49,111.43,40.59286603]
[1644466309141,0.03666176,111.48,111.43,40.59286603]
[1644466309340,0.03666176,111.48,111.43,54.05456603]
[1644466313345,0.03666176,111.48,111.43,13.4617]
[1644466313946,0.03666176,111.48,111.44,4.486]
[1644466314149,39.88810417,111.49,111.44,4.486]
[1644466314345,53.34970417,111.49,111.44,4.486]
[1644466315447,53.34970417,111.49,111.43,17.9467]
[1644466316148,53.34970417,111.49,111.44,39.27776478]
[1644466316352,57.33570417,111.49,111.44,39.27776478]
[1644466316950,17.48426176,111.49,111.44,39.27776478]
[1644466317149,0.03666176,111.49,111.45,4.485]
[1644466317354,27.61006176,111.53,111.45,4.485]
[1644466317550,0.03666176,111.49,111.45,4.485]
[1644466317752,0.03666176,111.52,111.45,4.485]
[1644466318150,42.09547811,111.52,111.45,4.485]
[1644466318751,55.55367811,111.52,111.45,17.9441]
[1644466318952,55.55367811,111.52,111.45,19.77005438]
[1644466319152,34.60797777,111.5,111.45,19.77005438]
[1644466319352,34.64463953,111.5,111.45,19.77005438]
[1644466319552,34.64463953,111.5,111.45,17.9441]
[1644466320953,34.64463953,111.5,111.45,19.77005438]
[1644466322557,34.64463953,111.5,111.45,15.28505438]
[1644466323256,0.03666176,111.5,111.45,15.28505438]
[1644466323456,0.03666176,111.5,111.45,15.53505438]
[1644466323657,0.03666176,111.5,111.46,4.485]
[1644466323857,0.03666176,111.52,111.47,13.4564]
[1644466324057,0.03666176,111.52,111.47,15.28235438]
[1644466324260,34.63625872,111.52,111.47,15.28235438]
[1644466327278,0.03666176,111.52,111.47,15.53235438]
[1644466328181,0.03666176,111.52,111.48,44.47877912]
[1644466328378,23.5914,111.53,111.49,13.4544]
[1644466328579,23.62806176,111.53,111.49,13.4544]
[1644466328778,0.03666176,111.53,111.49,13.4544]
[1644466328979,39.63461968,111.54,111.49,13.4544]
[1644466329979,39.63461968,111.54,111.5,38.43781868]
[1644466329980,0.03666176,111.54,111.5,38.43781868]
[1644466330179,0.03666176,111.54,111.5,51.89161868]
[1644466331683,3.986,111.57,111.5,53.96757306]
[1644466331884,0.03672036,111.54,111.5,53.96757306]
[1644466332084,0.03672036,111.56,111.52,13.4493]
[1644466332283,0.03672036,111.58,111.53,6.0]
[1644466332485,0.03672036,111.59,111.53,6.0]
[1644466332684,35.71141277,111.59,111.53,54.7091082]
[1644466332884,0.03672036,111.58,111.53,6.0]
[1644466333686,0.03672036,111.58,111.54,13.4485]
[1644466333888,35.71141277,111.59,111.54,13.4485]
[1644466334086,39.68341277,111.59,111.54,13.4485]
[1644466337793,35.71141277,111.59,111.54,13.4485]
[1644466337994,0.03672036,111.59,111.56,13.4449]
[1644466338192,0.03672036,111.6,111.57,12.06439994]
[1644466338392,0.03672036,111.62,111.57,49.69088527]
[1644466338593,4.014,111.61,111.58,1.81678533]
[1644466338792,0.03672036,111.64,111.58,1.81678533]
[1644466338793,3.027,111.63,111.58,2.06678533]
[1644466339096,38.33290214,111.62,111.58,1.81678533]
[1644466339295,38.33290214,111.62,111.54,23.65215726]
[1644466339296,38.33290214,111.62,111.56,0.00678533]
[1644466339496,0.03672036,111.61,111.54,4.48]
[1644466339698,14.74979439,111.61,111.54,4.48]
[1644466339897,14.74979439,111.61,111.47,12.46]
[1644466340097,71.67702701,111.6,111.5,37.60583919]
[1644466340295,0.03672036,111.59,111.5,37.60583919]
[1644466341197,0.03672036,111.59,111.5,37.85583919]
[1644466341797,38.29618178,111.58,111.5,37.85583919]
[1644466341997,0.03672036,111.57,111.5,37.60583919]
[1644466342398,0.03672036,111.57,111.49,17.9356]
[1644466342598,22.26732036,111.57,111.49,17.9356]
[1644466343399,23.19952701,111.56,111.49,59.78296817]
[1644466343801,36.65382701,111.56,111.49,60.03296817]
[1644466344800,36.65382701,111.56,111.49,55.55096817]
[1644466345000,36.65382701,111.56,111.49,55.30096817]
[1644466345201,36.65382701,111.56,111.49,55.55096817]
[1644466345404,36.65382701,111.56,111.49,13.7036]
[1644466346402,36.65382701,111.56,111.49,13.4536]
[1644466346806,36.65382701,111.56,111.49,51.44032837]
[1644466347207,36.65382701,111.56,111.49,13.4536]
[1644466348206,35.65382701,111.56,111.5,35.8563265]
[1644466350807,35.65382701,111.56,111.49,17.9366]
[1644466351307,35.65382701,111.56,111.49,18.1866]
[1644466351508,35.65382701,111.56,111.49,17.9366]
[1644466352607,35.65382701,111.56,111.5,38.07087019]
[1644466354107,13.4543,111.56,111.5,38.07087019]
[1644466354307,22.26732036,111.57,111.5,51.77337019]
[1644466354712,22.30407441,111.57,111.51,4.482]
[1644466355109,62.54302544,111.57,111.51,4.482]
[1644466355310,62.54302544,111.57,111.52,45.43528573]
[1644466355511,62.54302544,111.57,111.51,4.482]
[1644466358216,75.99612544,111.57,111.51,4.482]
[1644466360733,75.99612544,111.57,111.5,36.8813]
[1644466361132,35.75717441,111.57,111.51,47.26927608]
[1644466361532,35.75717441,111.57,111.51,60.72127608]
[1644466361732,22.30407441,111.57,111.51,60.72127608]
[1644466362133,22.30407441,111.57,111.51,13.452]
[1644466363132,69.97462103,111.57,111.51,13.452]
[1644466364334,69.97462103,111.57,111.52,38.26926261]
[1644466365136,69.97462103,111.57,111.51,13.452]
[1644466365332,69.97462103,111.57,111.51,17.934]
[1644466366634,69.97462103,111.57,111.52,43.73306888]
[1644466366834,22.30407441,111.57,111.52,57.18386888]
[1644466367235,22.30407441,111.57,111.52,57.43386888]
[1644466368738,0.03675405,111.57,111.52,57.43386888]
[1644466368938,52.07005138,111.59,111.52,57.43386888]
[1644466368939,52.10680543,111.59,111.52,57.43386888]
[1644466369137,52.10680543,111.59,111.53,17.9319]
[1644466370539,52.10680543,111.59,111.54,36.5721039]
[1644466370741,52.07005138,111.59,111.53,13.4499]
[1644466371339,1.27926531,111.57,111.53,13.4499]
[1644466371740,1.27926531,111.57,111.53,52.09218734]
[1644466372844,1.31601936,111.58,111.53,52.09218734]
[1644466373040,1.27926531,111.58,111.53,52.09218734]
[1644466375847,1.27926531,111.58,111.53,13.4499]
[1644466376050,1.27926531,111.57,111.53,13.4499]
[1644466376852,21.87595741,111.56,111.53,13.4499]
[1644466377050,23.88071936,111.58,111.54,3.03219997]
[1644466377251,23.84396531,111.58,111.54,3.03219997]
[1644466378054,70.6007778,111.58,111.54,3.03219997]
[1644466378855,14.73146531,111.57,111.51,17.9347]
[1644466379255,14.73146531,111.57,111.51,4.481]
[1644466379555,13.7388963,111.56,111.51,4.481]
[1644466379755,13.4544,111.55,111.51,4.481]
[1644466380155,14.73366531,111.55,111.51,4.481]
[1644466380355,14.73366531,111.55,111.54,3.03219997]
[1644466383358,1.27926531,111.55,111.54,3.03219997]
[1644466383556,14.73266531,111.56,111.54,3.03219997]
[1644466384158,60.25385663,111.56,111.54,3.03219997]
[1644466384357,1.27926531,111.55,111.54,3.03219997]
[1644466384756,60.25385663,111.56,111.54,3.03219997]
[1644466385662,1.27926531,111.55,111.54,3.03219997]
[1644466386359,14.73376531,111.55,111.54,3.03219997]
[1644466386659,25.89476531,111.55,111.51,4.481]
[1644466386860,1.27926531,111.54,111.51,4.481]
[1644466387259,13.22158281,111.54,111.51,4.481]
[1644466388059,1.27926531,111.54,111.51,4.481]
[1644466388559,12.46,111.56,111.51,4.481]
[1644466388560,1.27926531,111.55,111.51,4.481]
[1644466388760,13.4574,111.53,111.51,4.481]
[1644466388959,13.4574,111.53,111.52,3.03219997]
[1644466389561,28.14364411,111.53,111.52,3.03219997]
[1644466389962,29.42290942,111.53,111.52,3.03219997]
[1644466391164,32.45510939,111.53,111.52,3.03219997]
[1644466392064,32.45510939,111.53,111.51,4.481]
[1644466392263,44.91510939,111.53,111.51,4.481]
[1644466392665,17.76886528,111.53,111.51,4.481]
[1644466392868,3.03219997,111.53,111.51,4.481]
[1644466395868,3.03219997,111.52,111.51,4.481]
[1644466397370,3.03219997,111.53,111.51,4.481]
[1644466397570,13.4558,111.54,111.51,4.481]
[1644466398573,3.03219997,111.53,111.51,4.481]
[1644466401098,17.59593925,111.53,111.51,4.481]
[1644466401775,3.03219997,111.52,111.51,4.481]
[1644466405875,4.31146528,111.52,111.51,4.481]
[1644466406676,17.76976528,111.52,111.51,4.481]
[1644466409782,3.03219997,111.52,111.51,4.481]
[1644466412484,49.32584631,111.53,111.51,4.481]
[1644466412684,45.01438103,111.53,111.51,4.481]
[1644466413784,14.73546531,111.54,111.51,4.481]
[1644466414890,49.44461621,111.54,111.51,4.481]
[1644466416314,1.27926531,111.53,111.51,4.481]
[1644466416617,6.06439994,111.52,111.51,4.481]
[1644466422417,25.78655789,111.52,111.51,4.481]
[1644466423020,27.0658232,111.52,111.51,4.481]
[1644466423219,40.5237232,111.52,111.51,4.481]
[1644466425921,39.24445789,111.52,111.51,4.481]
[1644466428723,39.24445789,111.52,111.47,0.024]
[1644466428924,1.27968247,111.51,111.47,0.024]
[1644466429124,13.4608,111.5,111.47,0.024]
[1644466429626,30.2281509,111.49,111.47,0.024]
[1644466431025,43.6896509,111.49,111.45,36.6039]
[1644466431236,43.6896509,111.49,111.45,36.5799]
[1644466431442,43.6896509,111.49,111.45,13.4612]
[1644466432342,43.6896509,111.49,111.45,13.4852]
[1644466437775,43.6896509,111.49,111.45,0.024]
[1644466441982,13.4615,111.49,111.45,0.024]
[1644466442180,13.4602,111.5,111.45,13.4853]
[1644466442381,13.4602,111.5,111.46,0.024]
[1644466442983,52.46339889,111.5,111.46,0.024]
[1644466443683,52.46339889,111.5,111.46,13.4839]
[1644466443883,13.4602,111.5,111.46,13.4839]
[1644466448895,54.47447662,111.51,111.46,13.4839]
[1644466449095,54.47447662,111.51,111.47,0.024]
[1644466449496,1.27968247,111.51,111.47,13.4834]